bitfinex/quotes_ETHUSD_20250214
["timestamp","ask_amount","ask_price","bid_price","bid_amount"]
[1739553213311,4.20441,2736.5,2735.9,3.88305404]
[1739553213606,0.2183,2736.6,2735.4,5.25784]
[1739553213607,0.74213863,2736.0,2735.4,5.25784]
[1739553213814,0.74213863,2736.0,2735.3,3.88305404]
[1739553213815,0.55,2735.8,2735.3,3.88305404]
[1739553214110,1.633,2735.5,2735.0,3.65623]
[1739553215338,1.633,2735.5,2735.0,3.65622]
[1739553215542,1.633,2735.5,2735.0,7.31243]
[1739553215910,2.216839,2735.5,2735.0,7.31243]
[1739553216351,0.72140403,2735.2,2735.0,3.65621]
[1739553216637,0.72140403,2735.2,2735.1,3.65617]
[1739553219142,1.5697,2735.9,2735.5,3.65553]
[1739553219442,1.5697,2736.2,2735.7,3.65527]
[1739553219642,1.5697,2736.2,2735.9,7.53804404]
[1739553220148,0.55,2736.0,2735.6,3.88305404]
[1739553220440,0.55,2736.0,2735.5,3.65562]
[1739553220441,0.420487,2735.9,2735.5,3.6556]
[1739553220628,0.420487,2735.9,2735.5,7.31116]
[1739553220834,1.28734908,2736.0,2735.5,3.65556]
[1739553221221,1.28734908,2736.0,2735.6,3.65548]
[1739553221622,1.28734908,2736.0,2735.5,7.31112]
[1739553221834,0.73734908,2736.0,2735.6,7.53846404]
[1739553222025,0.73734908,2736.0,2735.9,7.53815404]
[1739553222229,0.73734908,2736.0,2735.9,3.88305404]
[1739553222413,0.73734908,2736.0,2735.9,7.53815404]
[1739553222639,0.73734908,2736.0,2735.9,3.88305404]
[1739553222822,0.73734908,2736.0,2735.6,11.19395404]
[1739553222823,0.96805399,2736.0,2735.6,11.19395404]
[1739553223028,0.96805399,2736.0,2735.6,3.65542]
[1739553223920,0.96805399,2736.0,2735.6,7.31084]
[1739553224619,0.96805399,2736.0,2735.6,3.65542]
[1739553224915,0.96805399,2736.0,2735.7,3.65533]
[1739553225117,0.96805399,2736.0,2735.6,3.88305404]
[1739553225343,0.73734908,2736.0,2735.9,7.53815404]
[1739553225920,0.73734908,2736.0,2735.6,3.88305404]
[1739553226334,0.73734908,2736.0,2735.6,3.65541]
[1739553226756,1.5697,2735.9,2735.3,3.88305404]
[1739553226957,0.23070491,2735.8,2735.4,3.65566]
[1739553227573,0.23070491,2735.8,2735.5,3.65556]
[1739553227747,0.23070491,2735.8,2735.6,3.65538]
[1739553228568,0.23070491,2735.8,2735.4,3.65569]
[1739553228862,0.55,2735.7,2735.3,3.88305404]
[1739553229033,0.55,2735.7,2735.3,7.53887404]
[1739553229238,0.55,2735.7,2735.3,3.88305404]
[1739553229431,0.78504049,2735.7,2735.4,3.65575]
[1739553229663,0.78504049,2735.7,2735.3,3.88305404]
[1739553229897,0.78504049,2735.7,2735.4,3.65574]
[1739553230064,0.78504049,2735.7,2735.4,3.65569]
[1739553230271,0.23504049,2735.7,2735.4,3.65569]
[1739553230474,0.23070491,2735.8,2735.6,3.6555]
[1739553230773,0.23070491,2735.8,2735.4,3.65569]
[1739553230971,0.55,2735.7,2735.4,3.65569]
[1739553231266,0.55,2735.5,2735.1,3.65608]
[1739553231466,0.21976,2735.4,2735.0,7.53929404]
[1739553231634,1.6476,2735.2,2735.0,3.09825169]
[1739553232563,4.20618,2735.1,2734.7,3.10825169]
[1739553232759,4.20618,2735.1,2734.7,0.01]
[1739553232760,0.55,2734.9,2734.7,0.01]
[1739553232960,4.20644,2734.9,2734.7,0.01]
[1739553233161,1.135404,2734.8,2734.7,0.01]
[1739553233357,0.55,2734.8,2734.7,0.01]
[1739553234173,1.6476,2735.0,2734.8,3.65656]
[1739553234369,1.6476,2735.0,2734.7,0.01]
[1739553234588,1.6476,2735.0,2734.7,3.6667]
[1739553234973,1.6476,2735.0,2734.7,0.01]
[1739553235192,0.23629018,2734.9,2734.7,0.01]
[1739553236177,0.78629018,2734.9,2734.7,0.01]
[1739553236356,0.55,2734.8,2734.7,0.01]
[1739553236777,0.23629018,2734.9,2734.7,0.01]
[1739553237088,0.23629018,2734.9,2734.7,3.66669]
[1739553237280,0.23629018,2734.9,2734.7,0.01]
[1739553237587,1.6476,2735.0,2734.7,3.66662]
[1739553237785,1.6476,2735.0,2734.8,3.65648]
[1739553237993,1.6476,2735.0,2734.7,3.66669]
[1739553238956,0.71530182,2735.1,2734.8,3.65646]
[1739553239357,0.71530182,2735.1,2734.7,0.01]
[1739553239590,0.43713418,2735.0,2734.7,3.66668]
[1739553239756,0.71530182,2735.1,2734.7,3.66668]
[1739553240493,4.20638,2735.0,2734.7,0.01]
[1739553240687,1.52,2734.9,2734.7,0.01]
[1739553241292,0.55,2734.8,2734.7,0.01]
[1739553241660,1.52,2734.9,2734.7,0.01]
[1739553241872,1.74353018,2734.9,2734.7,0.01]
[1739553242080,1.74353018,2734.9,2734.7,3.66669]
[1739553242255,1.74353018,2734.9,2734.7,0.01]
[1739553242664,0.22353018,2734.9,2734.8,3.65657]
[1739553242869,2.78530182,2735.1,2734.8,3.65657]
[1739553243291,2.78530182,2735.1,2734.7,0.01]
[1739553243489,2.78530182,2735.1,2734.7,3.66666]
[1739553244296,2.78530182,2735.1,2734.7,0.01]
[1739553244514,4.30044418,2735.0,2734.7,0.01]
[1739553245097,4.30044418,2735.0,2734.6,3.7914292]
[1739553245098,4.20644,2734.9,2734.6,3.7914292]
[1739553245325,4.20644,2734.9,2734.3,3.88419137]
[1739553245464,1.52,2734.8,2734.4,3.65703]
[1739553245786,0.572644,2734.7,2734.4,3.65703]
[1739553246896,0.73422223,2734.5,2734.4,3.65703]
[1739553247115,0.73422223,2734.5,2734.4,3.6571]
[1739553247680,0.64413418,2735.0,2734.3,7.54131137]
[1739553247870,1.5208,2735.1,2734.7,3.65664]
[1739553248063,0.55,2735.0,2734.7,3.65664]
[1739553248266,0.73180727,2734.8,2734.7,3.65664]
[1739553248461,1.74056,2735.4,2735.1,3.65611]
[1739553248661,5.39633,2735.4,2735.0,3.88419137]
[1739553248868,4.20605,2735.2,2734.4,5.47519137]
[1739553249190,1.5208,2734.4,2733.8,3.65779]
[1739553249500,1.5208,2734.7,2734.1,7.54157137]
[1739553249700,0.72002517,2734.3,2734.1,3.88419137]
[1739553249897,0.72002517,2734.3,2734.2,7.54156137]
[1739553250524,1.5208,2734.9,2734.3,7.31437]
[1739553250665,0.517718,2734.8,2734.3,3.65716]
[1739553250871,0.517718,2734.8,2734.3,7.31431]
[1739553251093,1.5208,2734.9,2734.5,3.88419137]
[1739553251290,1.5208,2734.9,2734.5,7.54108137]
[1739553251699,0.72090334,2734.6,2734.5,3.88419137]
[1739553252598,0.72090334,2734.6,2734.3,3.65712]
[1739553253106,1.5208,2734.9,2734.5,7.54103137]
[1739553253307,1.72788,2734.9,2734.5,7.54103137]
[1739553253803,5.38434,2734.9,2734.4,6.75657057]
[1739553254407,5.38434,2734.9,2734.4,3.09947057]
[1739553255214,0.72100221,2734.6,2734.4,6.75650057]
[1739553255382,0.72100221,2734.6,2734.5,3.65697]
[1739553255583,1.5208,2735.2,2734.5,3.65697]
[1739553255885,1.5208,2735.2,2734.1,3.65746]
[1739553255886,2.061203,2735.2,2735.0,3.09947057]
[1739553256099,1.74056,2735.4,2735.0,6.75570057]
[1739553256419,1.74056,2735.4,2735.3,3.09947057]
[1739553256578,1.5208,2735.8,2735.3,3.09947057]
[1739553256996,3.65554,2735.6,2735.3,3.09947057]
[1739553257706,3.65554,2735.6,2735.1,3.65616]
[1739553257905,0.365554,2735.5,2735.1,3.65616]
[1739553258292,0.365554,2735.5,2735.1,3.6561]
[1739553258502,0.73527151,2735.4,2735.1,3.6561]
[1739553258876,1.5208,2735.3,2734.9,7.53869124]
[1739553260409,1.5208,2735.3,2734.9,3.88232124]
[1739553260606,2.14854655,2735.3,2734.9,7.53875124]
[1739553261507,5.80444655,2735.3,2734.9,3.88232124]
[1739553261683,2.14854655,2735.3,2734.9,3.88232124]
[1739553262290,2.14854655,2735.3,2734.9,7.53875124]
[1739553262877,1.5208,2735.3,2734.9,7.53874124]
[1739553263176,1.5208,2735.3,2734.9,3.88232124]
[1739553263400,3.65606,2735.2,2734.7,3.6566]
[1739553263604,3.65637,2735.0,2734.4,3.657]
[1739553263878,4.20618,2735.1,2734.6,3.65678]
[1739553264072,0.78623,2735.0,2734.6,3.65678]
[1739553264278,2.084,2734.7,2734.6,3.88232124]
[1739553264477,0.74192226,2734.8,2734.5,3.65695]
[1739553264898,0.74192226,2734.8,2734.6,7.53914124]
[1739553265088,0.74192226,2734.8,2734.7,3.6567]
[1739553266177,1.534,2735.8,2735.2,3.65603]
[1739553266381,1.534,2735.8,2735.4,7.31144]
[1739553266382,0.74358769,2735.7,2735.4,7.31144]
[1739553266577,0.74358769,2735.7,2735.3,7.53822124]
[1739553267217,0.74206859,2735.5,2735.4,3.65571]
[1739553267426,3.65498,2736.0,2735.5,3.65556]
[1739553267607,1.098298,2735.9,2735.5,3.65556]
[1739553267802,0.71397213,2735.6,2735.5,3.65556]
[1739553268125,0.71397213,2735.6,2735.3,3.88232124]
[1739553268423,1.534,2735.5,2735.3,3.88232124]
[1739553269021,1.534,2735.5,2735.0,3.88232124]
[1739553269211,0.22479721,2735.4,2735.1,3.65616]
[1739553269416,0.22479721,2735.4,2735.2,3.656]
[1739553269734,1.534,2735.5,2735.3,3.6559]
[1739553269921,0.71397213,2735.6,2735.3,7.53814124]
[1739553270424,0.71397213,2735.6,2735.4,3.65569]
[1739553271489,0.71397213,2735.6,2735.4,5.17819]
[1739553271695,0.71397213,2735.6,2735.5,3.65563]
[1739553272221,1.534,2736.1,2735.8,3.65511]
[1739553272426,1.534,2736.1,2735.8,3.65515]
[1739553272632,0.74384305,2735.9,2735.8,3.65515]
[1739553272786,0.74384305,2735.9,2735.7,7.53768124]
[1739553273129,0.74384305,2735.9,2735.8,3.65523]
[1739553273689,0.74384305,2735.9,2735.7,7.53768124]
[1739553273894,0.74384305,2735.9,2735.7,11.19297124]
[1739553274108,0.74384305,2735.9,2735.8,3.65523]
[1739553274505,0.74384305,2735.9,2735.7,11.19289124]
[1739553274688,0.74384305,2735.9,2735.7,7.53760124]
[1739553274891,0.74384305,2735.9,2735.8,3.65523]
[1739553275618,0.74384305,2735.9,2735.7,3.88232124]
[1739553276218,0.74384305,2735.9,2735.7,7.53766124]
[1739553276751,0.74384305,2735.9,2735.7,7.53759124]
[1739553276906,0.74384305,2735.9,2735.7,3.88232124]
[1739553277112,0.74384305,2735.9,2735.8,3.65523]
[1739553277530,0.74384305,2735.9,2735.7,7.53762124]
[1739553277735,0.97162736,2735.9,2735.7,3.096551]
[1739553278009,4.62673736,2735.9,2735.4,3.096551]
[1739553278343,4.20558,2735.6,2735.1,3.096551]
[1739553278524,3.65565,2735.5,2735.1,3.096551]
[1739553278719,3.87155,2735.6,2735.1,3.096551]
[1739553279110,1.6104,2735.4,2735.1,3.096551]
[1739553279315,3.65597,2735.3,2734.8,6.753041]
[1739553279638,4.20611,2735.2,2734.8,3.096551]
[1739553279807,4.20611,2735.2,2734.7,3.65665]
[1739553279808,0.55,2734.9,2734.5,3.096551]
[1739553280214,0.55,2734.7,2734.5,3.096551]
[1739553281449,4.4041261,2734.9,2734.6,3.6568]
[1739553281450,0.7476861,2734.9,2734.6,3.6568]
[1739553282333,0.7476861,2734.9,2734.8,3.65657]
[1739553282537,0.7476861,2734.9,2734.8,7.53998781]
[1739553282976,1.6104,2735.3,2735.1,3.65614]
[1739553283277,0.21604,2735.3,2735.1,3.65614]
[1739553283574,0.55,2735.4,2735.1,3.65614]
[1739553283977,0.55,2735.4,2734.9,3.65638]
[1739553284133,0.55,2735.4,2734.9,3.65634]
[1739553284670,0.73374962,2735.2,2734.9,7.31265]
[1739553285353,0.73374962,2735.2,2735.1,3.65617]
[1739553286157,1.6104,2735.5,2735.1,3.88341781]
[1739553286460,0.22778431,2735.9,2735.5,3.65562]
[1739553286954,0.22778431,2735.9,2735.7,3.65529]
[1739553287128,3.85691671,2736.1,2735.7,3.65529]
[1739553287340,3.85691671,2736.1,2735.4,3.88341781]
[1739553287524,3.85691671,2736.1,2735.7,7.53875781]
[1739553287717,0.7182391,2735.8,2735.7,7.53875781]
[1739553287925,0.7182391,2735.8,2735.7,3.65534]
[1739553288654,9.44884,2736.9,2736.3,3.65449]
[1739553288954,0.74494352,2736.4,2736.3,3.88341781]
[1739553289452,0.74494352,2736.4,2736.0,7.53836781]
[1739553289660,0.74494352,2736.4,2736.1,3.6548]
[1739553290843,4.39938352,2736.4,2735.8,3.65515]
[1739553291041,0.43993835,2736.3,2735.9,3.65503]
[1739553291258,1.5245,2736.2,2735.9,3.6551]
[1739553291424,1.5245,2736.2,2735.9,3.65503]
[1739553291757,0.43993835,2736.3,2736.0,3.65486]
[1739553293056,0.98993835,2736.3,2735.7,3.88341781]
[1739553293256,0.98993835,2736.3,2735.8,3.65511]
[1739553293561,0.53894119,2736.2,2735.8,3.65523]
[1739553293942,1.5245,2736.1,2735.7,7.53877781]
[1739553294137,1.5245,2736.1,2735.8,3.65515]
[1739553294441,1.5245,2736.1,2736.0,3.65497]
[1739553295269,1.5245,2736.1,2735.8,3.65511]
[1739553295563,0.55,2735.9,2735.7,7.53875781]
[1739553296150,0.55,2735.9,2735.7,3.88341781]
[1739553296448,0.20634412,2736.0,2735.9,3.6551]
[1739553296651,1.5245,2736.3,2736.0,3.65484]
[1739553296855,0.74494352,2736.4,2736.0,7.53831781]
[1739553297028,0.55,2736.3,2736.0,3.6549]
[1739553297236,0.55,2736.1,2735.7,11.19395781]
[1739553297535,0.20745,2736.0,2735.8,3.65521]
[1739553298063,0.20745,2736.0,2735.9,3.6551]
[1739553298760,0.20745,2736.0,2735.8,3.65522]
[1739553299132,0.20745,2736.0,2735.8,3.65516]
[1739553299866,0.20745,2736.0,2735.8,7.31031]
[1739553300867,0.20745,2736.0,2735.8,3.65515]
[1739553301073,0.55,2735.9,2735.4,3.88341781]
[1739553301240,0.55,2735.7,2735.3,3.0]
[1739553301443,4.20537,2735.7,2735.2,3.65594]
[1739553301639,4.20537,2735.7,2735.1,7.53953781]
[1739553301872,4.20537,2735.7,2735.1,3.65612]
[1739553302206,0.55,2735.5,2735.2,3.65603]
[1739553302343,0.73209889,2735.3,2735.2,3.65603]
[1739553303287,0.73209889,2735.3,2735.1,7.53949781]
[1739553303488,0.73209889,2735.3,2735.1,11.19558781]
[1739553303787,0.73209889,2735.3,2734.8,1.5517]
[1739553303788,2.25659889,2735.3,2734.9,3.65633]
[1739553303990,2.25659889,2735.3,2734.9,7.3127]
[1739553303991,0.22565989,2735.2,2734.9,7.3127]
[1739553304289,2.25659889,2735.3,2734.9,3.65644]
[1739553304503,2.25659889,2735.3,2734.8,3.88341781]
[1739553304662,2.25659889,2735.3,2735.0,3.65626]
[1739553304845,2.25659889,2735.3,2735.0,3.65621]
[1739553305879,2.25659889,2735.3,2735.1,7.53956781]
[1739553306266,2.25659889,2735.3,2735.1,7.53951781]
[1739553306775,0.55,2735.2,2734.9,3.65637]
[1739553307084,0.55,2735.2,2734.6,3.65673]
[1739553307085,4.20604,2735.2,2734.6,3.65673]
[1739553307241,0.55,2735.0,2734.6,3.65682]
[1739553307442,5.7413,2735.0,2734.6,3.65682]
[1739553307668,0.57413,2734.9,2734.6,3.65682]
[1739553307866,0.57413,2734.9,2734.7,3.65667]
[1739553308062,2.085,2735.0,2734.7,3.65667]
[1739553309073,0.55,2735.1,2734.7,5.22217]
[1739553309385,0.73209889,2735.3,2734.8,7.53991781]
[1739553309560,0.73209889,2735.3,2735.0,3.65626]
[1739553309765,0.73209889,2735.3,2735.1,3.65605]
[1739553310690,0.73209889,2735.3,2735.0,3.65622]
[1739553311500,0.73209889,2735.3,2735.2,3.65603]
[1739553311850,0.73209889,2735.3,2735.1,7.53956781]
[1739553312179,0.73209889,2735.3,2735.1,3.65615]
[1739553313391,1.535,2735.1,2734.8,3.65648]
[1739553313593,0.55,2735.0,2734.7,3.65662]
[1739553314415,0.55,2735.0,2734.5,7.54028781]
[1739553314909,0.55,2735.0,2734.7,3.65658]
[1739553315062,1.124118,2735.0,2734.7,3.65658]
[1739553315259,1.124118,2735.0,2734.6,3.65684]
[1739553315482,0.74440415,2734.8,2734.6,3.65675]
[1739553315690,0.74440415,2734.8,2734.7,3.65664]
[1739553317863,0.74440415,2734.8,2734.5,3.88341781]
[1739553318069,0.44008542,2734.7,2734.5,3.88341781]
[1739553318570,4.09678542,2734.7,2734.3,3.6572]
[1739553318771,2.1581,2734.6,2734.3,3.65716]
[1739553318970,0.55,2734.6,2734.4,3.65702]
[1739553319189,0.88425896,2734.6,2734.4,3.65702]
[1739553319408,0.88425896,2734.6,2734.3,3.65721]
[1739553319610,0.88425896,2734.6,2734.3,6.75686375]
[1739553319768,0.88425896,2734.6,2734.3,10.41403375]
[1739553319969,0.88425896,2734.6,2734.4,3.65707]
[1739553321473,0.88425896,2734.6,2734.3,3.09965375]
[1739553321668,0.88425896,2734.6,2734.4,3.65709]
[1739553322109,1.5801,2734.5,2734.3,3.09965375]
[1739553322318,1.8265359,2734.5,2734.4,3.6571]
[1739553322637,0.74440415,2734.8,2734.7,3.6567]
[1739553322781,0.74440415,2734.8,2734.7,6.75635375]
[1739553323504,0.18013287,2735.9,2735.2,3.65593]
[1739553323672,1.5801,2735.6,2735.3,3.65583]
[1739553323885,2.208605,2735.6,2735.3,3.65583]
[1739553324068,0.628505,2735.6,2735.5,3.09965375]
[1739553324273,1.5801,2735.9,2735.6,3.6555]
[1739553324503,1.79091256,2735.7,2735.6,3.6555]
[1739553324976,1.79091256,2735.7,2735.5,3.09965375]
[1739553325176,3.65565,2735.5,2735.2,3.09965375]
[1739553325375,4.2056,2735.6,2735.0,7.31246]
[1739553325601,0.59965126,2735.5,2735.1,3.65617]
[1739553325794,0.59965126,2735.5,2735.2,3.65603]
[1739553325974,0.59965126,2735.5,2735.2,7.31198]
[1739553326302,0.55,2735.6,2735.3,3.65583]
[1739553326522,1.79091256,2735.7,2735.2,3.88241346]
[1739553326717,1.79091256,2735.7,2735.5,3.65555]
[1739553327003,1.79091256,2735.7,2735.3,3.65584]
[1739553327393,1.79091256,2735.7,2735.6,3.6555]
[1739553328307,1.0496,2735.7,2735.6,3.6555]
[1739553330580,1.0496,2735.7,2735.5,7.53796346]
[1739553330881,1.0496,2735.7,2735.5,3.65555]
[1739553331215,1.38564499,2735.7,2735.6,3.6555]
[1739553331728,1.0496,2735.7,2735.6,3.6555]
[1739553333717,1.0496,2735.7,2735.6,5.3201]
[1739553333927,2.6297,2735.7,2735.5,3.88241346]
[1739553334227,2.6297,2735.7,2735.0,1.6646]
[1739553334228,0.55,2735.6,2735.2,3.65597]
[1739553334729,0.55,2735.6,2735.1,3.65606]
[1739553334945,1.233514,2735.6,2735.0,5.32081]
[1739553335078,1.233514,2735.6,2734.6,3.65678]
[1739553335079,3.65597,2735.3,2734.8,3.65652]
[1739553335284,3.65597,2735.3,2734.0,6.34201336]
[1739553335285,2.1301,2735.2,2734.5,3.65697]
[1739553335489,0.55,2735.0,2734.5,3.65697]
[1739553335802,0.73251551,2734.9,2734.7,3.65663]
[1739553336004,0.73251551,2734.9,2734.8,3.65657]
[1739553338039,1.28251551,2734.9,2734.6,3.88241346]
[1739553338340,1.28251551,2734.9,2734.7,3.65663]
[1739553338341,0.73251551,2734.9,2734.7,3.65663]
[1739553340351,0.73251551,2734.9,2734.6,3.88241346]
[1739553340499,0.73251551,2734.9,2734.6,7.53915346]
[1739553340698,0.73251551,2734.9,2734.7,3.65667]
[1739553341955,0.73251551,2734.9,2734.6,3.88241346]
[1739553342558,0.73251551,2734.9,2734.6,7.53916346]
[1739553342714,0.73251551,2734.9,2734.5,3.65688]
[1739553343734,0.73251551,2734.9,2734.5,7.31376]
[1739553344300,0.73251551,2734.9,2734.6,3.6568]
[1739553344498,0.73251551,2734.9,2734.6,3.65684]
[1739553344724,0.73251551,2734.9,2734.8,3.65657]
[1739553351756,0.55,2735.4,2735.1,3.65605]
[1739553352064,0.55,2735.4,2735.1,3.09872577]
[1739553352267,0.74735855,2735.2,2735.1,3.09872577]
[1739553353055,0.74735855,2735.2,2734.8,6.75522577]
[1739553353358,0.74735855,2735.2,2734.9,3.65643]
[1739553353563,0.74735855,2735.2,2734.8,6.75520577]
[1739553353727,0.74735855,2735.2,2735.0,3.6562]
[1739553355430,0.74735855,2735.2,2735.0,7.31244]
[1739553355967,0.74735855,2735.2,2735.1,3.65617]
[1739553357899,0.74735855,2735.2,2734.9,5.28166]
[1739553358066,1.24267741,2735.2,2735.0,3.65627]
[1739553358539,1.24267741,2735.2,2735.1,3.65617]
[1739553358745,0.74735855,2735.2,2735.1,3.65617]
[1739553360245,0.74735855,2735.2,2735.1,6.75489577]
[1739553360568,1.0496,2735.7,2735.6,3.6555]
[1739553360774,1.0496,2735.7,2735.6,8.37952577]
[1739553361533,1.0496,2735.7,2735.6,11.37952577]
[1739553363539,1.0496,2735.7,2735.6,14.47825154]
[1739553363776,0.73055451,2736.1,2736.0,6.65497]
[1739553363947,5.795,2736.5,2736.4,3.65443]
[1739553364148,0.72338432,2736.5,2736.4,6.75315577]
[1739553364364,1.6094,2737.0,2736.7,3.65394]
[1739553364670,1.6094,2737.0,2736.7,6.75266577]
[1739553365412,0.74284626,2736.8,2736.5,3.65429]
[1739553365573,0.74284626,2736.8,2736.5,3.65423]
[1739553365870,0.74284626,2736.8,2736.6,3.65408]
[1739553366076,0.74284626,2736.8,2736.7,3.65403]
[1739553366276,0.74284626,2736.8,2736.7,6.75275577]
[1739553366976,1.5724,2737.4,2737.2,3.65336]
[1739553367159,0.74659334,2737.3,2737.2,6.75208577]
[1739553367482,0.74659334,2737.3,2737.2,3.09872577]
[1739553367642,0.74659334,2737.3,2737.2,6.75208577]
[1739553368173,7.3664,2738.0,2737.6,3.65279]
[1739553368381,0.73079861,2737.8,2737.7,6.75134577]
[1739553368542,5.794,2738.0,2737.9,3.65243]
[1739553369268,1.0488,2738.2,2738.1,3.65216]
[1739553369485,1.0488,2738.2,2738.1,6.75088577]
[1739553369682,1.0488,2738.2,2738.1,3.09872577]
[1739553370048,1.0488,2738.2,2738.1,6.75088577]
[1739553371276,1.0488,2738.2,2738.1,6.78740422]
[1739553371487,1.0488,2738.2,2738.1,6.75088577]
[1739553372778,1.0488,2738.2,2738.1,3.09872577]
[1739553373158,1.0488,2738.2,2738.1,6.75088577]
[1739553373349,1.0488,2738.2,2738.1,3.09872577]
[1739553373645,1.0488,2738.2,2738.1,6.75088577]
[1739553373845,1.0488,2738.2,2738.1,3.09872577]
[1739553374052,1.0488,2738.2,2738.1,6.75088577]
[1739553375808,1.0488,2738.2,2738.0,3.65221]
[1739553376713,1.0488,2738.2,2737.9,6.75108577]
[1739553376853,1.0488,2738.2,2738.0,3.6522]
[1739553377300,1.0488,2738.2,2737.9,6.75108577]
[1739553378158,1.0488,2738.2,2738.0,3.65227]
[1739553378871,2.6212,2738.2,2737.9,3.09872577]
[1739553379090,2.6212,2738.2,2737.3,4.66772577]
[1739553379091,3.65265,2737.8,2737.3,4.66772577]
[1739553379287,2.1224,2737.8,2737.3,3.09872577]
[1739553379460,5.77504,2737.8,2737.3,6.75187577]
[1739553379657,2.1224,2737.8,2737.4,3.65308]
[1739553379890,5.77499,2737.8,2737.3,3.09872577]
[1739553380162,5.77499,2737.8,2737.3,6.75190577]
[1739553380967,2.1224,2737.8,2737.3,3.09872577]
[1739553381196,2.1224,2737.8,2737.4,3.65308]
[1739553381499,1.5724,2737.8,2737.3,6.75188577]
[1739553381710,1.5724,2737.8,2737.6,3.09872577]
[1739553382656,0.72628658,2737.7,2737.6,3.09872577]
[1739553383298,0.72628658,2737.7,2737.6,6.75155577]
[1739553383491,0.72628658,2737.7,2737.6,8.35995577]
[1739553383904,0.72628658,2737.7,2737.6,6.75155577]
[1739553384348,0.72628658,2737.7,2737.6,3.09872577]
[1739553384846,1.0488,2738.2,2737.6,6.75155577]
[1739553384847,4.70091,2738.2,2737.6,6.75155577]
[1739553385027,0.55,2738.1,2737.9,3.09872577]
[1739553386296,4.20217,2738.1,2737.9,3.09872577]
[1739553387220,0.73793049,2738.0,2737.9,3.09872577]
[1739553388109,0.73793049,2738.0,2737.6,6.75155577]
[1739553388304,4.93413654,2738.0,2737.6,3.09872577]
[1739553388509,2.1406,2737.9,2737.6,3.09872577]
[1739553388708,3.65272,2737.7,2737.3,3.09872577]
[1739553389230,7.30533,2737.8,2737.3,6.75193577]
[1739553389529,2.1406,2737.9,2737.4,3.653]
[1739553389836,2.1406,2737.9,2737.6,3.09872577]
[1739553390207,5.79304,2737.9,2737.6,3.09872577]
[1739553390409,2.1406,2737.9,2737.6,3.09872577]
[1739553390615,5.79306,2737.9,2737.6,3.09872577]
[1739553390933,3.65264,2737.8,2737.6,3.09872577]
[1739553391340,3.15892305,2737.9,2737.6,3.09872577]
[1739553391512,6.81146305,2737.9,2737.6,3.09872577]
[1739553391722,3.15892305,2737.9,2737.6,3.09872577]
[1739553391925,3.65265,2737.8,2737.6,3.09872577]
[1739553392423,7.30532,2737.8,2737.6,3.09872577]
[1739553392617,3.65265,2737.8,2737.6,3.09872577]
[1739553392818,2.1406,2737.9,2737.6,3.09872577]
[1739553393023,3.65257,2737.8,2737.6,3.09872577]
[1739553393208,5.79303,2737.9,2737.6,3.09872577]
[1739553393747,3.65264,2737.8,2737.6,3.09872577]
[1739553394242,2.1406,2737.9,2737.6,3.09872577]
[1739553394441,5.79303,2737.9,2737.6,3.09872577]
[1739553394844,7.30524,2737.8,2737.6,3.09872577]
[1739553395045,4.67094705,2737.8,2737.3,6.09872577]
[1739553395249,0.55,2737.7,2737.3,3.09872577]
[1739553395550,3.65303,2737.5,2737.1,3.0]
[1739553396447,3.65312,2737.4,2737.1,3.0]
[1739553397163,4.20297,2737.5,2737.1,3.0]
[1739553397465,4.20297,2737.5,2737.1,6.65348]
[1739553397815,3.65311,2737.4,2737.1,3.0]
[1739553398268,3.6533,2737.3,2737.0,3.09872577]
[1739553398772,0.55,2737.3,2737.0,3.09872577]
[1739553399121,3.65304,2737.5,2737.0,3.09872577]
[1739553399337,0.72769669,2737.3,2737.0,3.09872577]
[1739553399655,0.73003584,2737.5,2737.2,3.65325]
[1739553399850,0.73003584,2737.5,2737.2,3.65328]
[1739553400274,3.65233,2738.0,2737.4,3.6531]
[1739553400447,1.5124,2738.1,2737.7,3.65263]
[1739553400754,0.7393868,2737.8,2737.6,8.40522577]
[1739553400960,0.7393868,2737.8,2737.6,4.75242577]
[1739553401133,0.7393868,2737.8,2737.6,3.09872577]
[1739553401338,0.7393868,2737.8,2737.6,6.75155577]
[1739553401583,0.7393868,2737.8,2737.6,6.75148577]
[1739553401887,0.7393868,2737.8,2737.7,3.6527]
[1739553402381,1.77919396,2738.2,2738.0,1.6537]
[1739553402536,1.0488,2738.2,2738.1,6.78740583]
[1739553403019,1.0488,2738.2,2738.1,6.75088577]
[1739553404475,1.0488,2738.2,2738.1,3.65216]
[1739553406072,1.0488,2738.2,2738.0,5.3059]
[1739553406267,1.0488,2738.2,2738.1,3.65216]
[1739553406579,1.0488,2738.2,2738.0,3.0]
[1739553407275,1.0488,2738.2,2738.0,6.65228]
[1739553407640,1.0488,2738.2,2738.0,3.0]
[1739553408372,1.0488,2738.2,2737.9,6.75115577]
[1739553408738,1.0488,2738.2,2738.0,5.30595]
[1739553408941,1.0488,2738.2,2738.1,3.65216]
[1739553410074,1.0488,2738.2,2738.0,3.65229]
[1739553410263,1.0488,2738.2,2737.9,6.75115577]
[1739553410779,1.0488,2738.2,2738.1,3.65216]
[1739553413878,1.0488,2738.2,2738.1,5.25616]
[1739553416261,1.0488,2738.2,2738.1,8.25616]
[1739553420284,1.5307,2739.5,2739.1,3.65074]
[1739553420481,2.048797,2739.5,2739.3,3.09872577]
[1739553420663,1.5307,2739.5,2739.3,6.74921577]
[1739553420863,6.9207,2739.8,2739.3,6.74921577]
[1739553421083,6.9207,2739.8,2739.5,3.65029]
[1739553421291,6.9207,2739.8,2739.6,3.65016]
[1739553421449,6.9207,2739.8,2739.3,6.74919577]
[1739553421450,6.9207,2739.8,2739.5,3.09872577]
[1739553421657,1.5307,2739.8,2739.5,3.09872577]
[1739553421877,7.0807,2739.8,2739.5,3.09872577]
[1739553422502,7.0807,2739.8,2739.5,6.74898577]
[1739553423106,12.6307,2739.8,2739.5,6.74898577]
[1739553423419,12.6307,2739.8,2739.5,3.09872577]
[1739553423420,0.72126357,2739.7,2739.5,3.09872577]